[Event "Croatian 1A League 2022"]
[Site "Porec"]
[Date "2022.09.25"]
[Round "2.23"]
[White "Kurajica, Bojan"]
[Black "Franic, Milan"]
[Result "1-0"]
[ECO "B00"]
[WhiteElo "2488"]
[BlackElo "2365"]
[Annotator "TA"]
[PlyCount "71"]
[EventDate "2022.09.24"]
[EventType "team-tourn"]
[EventCountry "CRO"]
[SourceTitle "playchess.com"]
[Source "ChessBase"]
[SourceQuality "1"]
[TimeControl "40/5400+30:1800+30"]

{[%evp 9,71,0,18,0,0,6,25,25,21,17,24,35,62,41,159,132,316,317,322,324,307,312,360,368,362,348,348,339,343,344,397,402,410,369,377,376,377,355,399,396,400,403,403,395,434,446,432,406,397,390,374,155,620,592,641,640,600,589,814,732,708,697,847,822]} 1. Nf3 {[%emt 0:00:30]} b6 {[%emt 0:05:04]} 2. e4 {[%emt 0:00:58]} Bb7 {[%emt 0:00:05]} 3. Bc4 {[%emt 0:01:19]} e6 {[%emt 0:01:52]} 4. Qe2 {[%emt 0:00:22]} Nf6 {[%emt 0:04:48]} 5. Nc3 {[%emt 0:08:46]} Be7 {[%emt 0:01:14]} 6. d4 {[%emt 0:02:07] B00: Queen's Fianchetto Defence, Nimzowitsch Defence.} d5 {[%emt 0:01:30]} 7. exd5 {[%emt 0:01:21]} Nxd5 {[%emt 0:01:50]} 8. Nxd5 {[%emt 0:06:26] [#] White has an edge.} exd5 $146 {[%emt 0:04:35]} ({Predecessor:} 8... Bxd5 9. Bd3 Bf6 10. c3 Bb7 11. O-O O-O 12. Bc2 Ba6 13. Qe4 g6 14. Qxa8 Bxf1 15. Kxf1 {1-0 (15) Kasianczuk,K (1682)-Cygan,M Wroclaw 2012}) 9. Bb5+ {[%emt 0:00:30]} c6 {[%emt 0:03:53]} 10. Bd3 {[%emt 0:00:06][%cal Bb5d3,Bd3f5,Bf5e6][%mdl 32]} Nd7 {[%emt 0:02:19]} 11. Bg5 {[%emt 0:03:34]} f6 {[%emt 0:20:26]} (11... Nf8 $14) 12. Bf4 {[%emt 0:14:58] White is more active.} O-O $2 {[%emt 0:04:01]} (12... Kf7 $16 {is a better defense.}) 13. Qe6+ $18 {[%emt 0:01:48]} Kh8 {[%emt 0:02:06]} 14. Qh3 {[%emt 0:01:36][%csl Gd3][%cal Rh3h7] [#]} f5 {[%emt 0:05:58]} 15. Bxf5 {[%emt 0:01:31][%csl Gf5][%cal Rh3h7]} Nf6 {[%emt 0:00:05]} 16. Ne5 {[%emt 0:02:04] And now Ng6+ would win.} Bc8 {[%emt 0:01:48]} 17. Ng6+ {[%emt 0:00:51]} ({Weaker is} 17. Nxc6 Bxf5 18. Qxf5 Qe8 19. Nxe7 Qxe7+ 20. Qe5 Qb4+ 21. c3 Qxb2 $11) 17... Kg8 {[%emt 0:00:06] [#] aiming for ...Bxf5.} 18. Be6+ {[%emt 0:06:03]} Rf7 {[%emt 0:03:53] White must now prevent ...Bxe6.} 19. Ne5 {[%emt 0:01:17]} Qe8 {[%emt 0:01:51] Strongly threatening ...Bxe6.} 20. Bxf7+ {[%emt 0:00:33]} Qxf7 {[%emt 0:00:11]} 21. Nxf7 {[%emt 0:01:49]} Bxh3 {[%emt 0:00:07]} 22. Nh6+ {[%emt 0:00:11]} ({Less strong is} 22. gxh3 Kxf7 23. O-O Ne4 $18) 22... gxh6 {[%emt 0:00:38]} 23. gxh3 {[%emt 0:00:07]} Ne4 {[%emt 0:01:49]} 24. Rg1+ {[%emt 0:00:54]} Kf7 {[%emt 0:00:08]} 25. Bxh6 {[%emt 0:01:09]} Bf6 {[%emt 0:00:20]} 26. O-O-O {[%emt 0:00:47]} Re8 {[%emt 0:01:29]} 27. f3 {[%emt 0:07:25]} Nd6 {[%emt 0:00:19]} 28. Bf4 {[%emt 0:01:00]} Nf5 {[%emt 0:00:32]} 29. c3 {[%emt 0:00:29]} Nh4 {[%emt 0:00:51]} 30. Rde1 {[%emt 0:03:34]} (30. Rgf1 $18) 30... Nxf3 $2 {[%emt 0:01:00]} (30... Rxe1+ $16 31. Rxe1 Ng2) 31. Rxe8 {[%emt 0:00:20] White is clearly winning.} Nxg1 $16 {[%emt 0:00:22] KRB-KBN} 32. Re3 {[%emt 0:00:51]} Bh4 {[%emt 0:00:46]} 33. Kd1 {[%emt 0:01:27]} b5 {[%emt 0:00:41]} 34. Rd3 {[%emt 0:01:21]} Kg6 {[%emt 0:00:43]} 35. Bg3 {[%emt 0:01:21]} Bg5 {[%emt 0:00:08]} 36. Bf2 {[%emt 0:00:18] Black did not feel at home in the position after the opening.  Weighted Error Value: White=0.13 (very precise) /Black=0.52} 1-0

[Event "Croatian 1A League 2022"]
[Site "Porec"]
[Date "2022.09.25"]
[Round "2.24"]
[White "Rubil, Marko"]
[Black "Cvitan, Ognjen"]
[Result "1/2-1/2"]
[ECO "B12"]
[WhiteElo "2270"]
[BlackElo "2445"]
[Annotator "TA"]
[PlyCount "26"]
[EventDate "2022.09.24"]
[EventType "team-tourn"]
[EventCountry "CRO"]
[SourceTitle "playchess.com"]
[Source "ChessBase"]
[SourceQuality "1"]
[TimeControl "40/5400+30:1800+30"]

{[%evp 9,26,8,3,0,0,0,0,0,0,0,0,2,39,35,32,47,44,35,51]} 1. e4 {[%emt 0:00:58]} c6 {[%emt 0:00:46]} 2. d4 {[%emt 0:00:16]} d5 {[%emt 0:02:14]} 3. e5 {[%emt 0:00:09]} c5 {[%emt 0:00:42]} 4. dxc5 {[%emt 0:03:18]} e6 {[%emt 0:03:32]} 5. a3 {[%emt 0:06:05]} Bxc5 {[%emt 0:06:09]} 6. b4 {[%emt 0:00:08] B12: Caro-Kann: Advance Variation.} Be7 {[%emt 0:02:27]} 7. Nf3 {[%emt 0:04:43]} a5 {[%emt 0:08:06]} 8. b5 {[%emt 0:01:09] The position is equal.} ({But not} 8. Bb5+ Bd7 9. Bxd7+ Nxd7 $15) 8... Nd7 {[%emt 0:04:57]} 9. Bd3 {[%emt 0:16:55]} f6 {[%emt 0:08:01]} 10. Bb2 {[%emt 0:05:09]} fxe5 {[%emt 0:03:44]} 11. Nxe5 {[%emt 0:01:28] White is slightly better.} Nxe5 {[%emt 0:06:31]} 12. Bxe5 {[%emt 0:00:07]} Nf6 {[%emt 0:01:20]} 13. O-O {[%emt 0:03:03] [#]} O-O $146 {[%emt 0:00:45] Weighted Error Value: White=0.02 (flawless) /Black=0.04 (flawless)} ({Predecessor:} 13... Bd6 14. f4 O-O 15. Nd2 Bd7 16. Kh1 Be8 17. Qe1 Qe7 18. Nf3 Ne4 19. Bxe4 dxe4 20. Qxe4 Bxb5 21. Bxd6 Qxd6 {½-½ (64) Forcen Esteban,D (2541)-Epishin,V (2536) Roquetas de Mar 2018}) 1/2-1/2

[Event "Croatian 1A League 2022"]
[Site "Porec"]
[Date "2022.09.25"]
[Round "2.25"]
[White "Shevchenko, Kirill"]
[Black "Cheparinov, Ivan"]
[Result "0-1"]
[ECO "C78"]
[WhiteElo "2645"]
[BlackElo "2686"]
[Annotator "TA"]
[PlyCount "140"]
[EventDate "2022.09.24"]
[EventType "team-tourn"]
[EventCountry "CRO"]
[SourceTitle "playchess.com"]
[Source "ChessBase"]
[SourceQuality "1"]
[TimeControl "40/5400+30:1800+30"]

{[%evp 17,140,31,44,0,1,0,0,0,0,17,16,0,0,-37,-37,-22,108,95,114,111,112,95,97,93,116,33,72,16,35,10,23,19,45,12,35,39,38,0,20,0,0,-91,-91,-91,-98,-87,-85,-85,-100,-85,-92,-106,-104,-104,-74,-98,-58,-109,-105,-113,-97,-93,-89,-115,-113,-131,-115,-115,-122,-135,-123,-125,-94,-95,-98,-143,-114,-160,-75,-218,-178,-223,-212,-253,-215,-215,-215,-314,-253,-347,-339,-347,-253,-334,-334,-347,-312,-186,0,-355,-300,-354,-347,-347,-347,-354,-347,-347,-292,-340,-292,-347,-340,-333,-333,-292,-292,-318,-285,-285,-285,-285,-285,-285,-278]} 1. e4 {[%emt 0:00:01]} e5 {[%emt 0:00:48]} 2. Nf3 {[%emt 0:00:05]} Nc6 {[%emt 0:00:05]} 3. Bb5 {[%emt 0:00:02][%cal Bf1b5,Bb5a4,Ba4b3][%mdl 32]} a6 {[%emt 0:00:05]} 4. Ba4 {[%emt 0:00:02]} Nf6 {[%emt 0:00:05]} 5. O-O {[%emt 0:00:03]} b5 {[%emt 0:00:09]} 6. Bb3 {[%emt 0:00:05]} Bc5 {[%emt 0:00:03]} 7. a4 {[%emt 0:02:10]} Rb8 {[%emt 0:00:11]} 8. c3 {[%emt 0:01:29]} d6 {[%emt 0:00:10]} 9. d4 {[%emt 0:00:21]} Bb6 {[%emt 0:00:05]} 10. Qd3 {[%emt 0:04:14] C78: Ruy Lopez: Archangelsk and Möller Defences.} O-O {[%emt 0:00:43]} 11. Bg5 {[%emt 0:02:09]} exd4 {[%emt 0:00:52]} 12. cxd4 {[%emt 0:00:15] The position is equal.} h6 {[%emt 0:00:06]} 13. Bh4 {[%emt 0:00:14]} g5 {[%emt 0:00:04] [#]} 14. Nxg5 $146 {[%emt 0:04:15]} ({Predecessor:} 14. Bg3 Nh5 15. Nc3 Nxg3 16. fxg3 Ne5 17. Qd2 Nc4 18. Bxc4 bxc4 19. h4 Be6 20. Nd5 Bxd5 21. exd5 {1-0 (36) Giri,A (2764)-Shirov,A (2649) Chess.com INT 2020}) 14... hxg5 $15 {[%emt 0:02:31]} 15. Bxg5 {[%emt 0:00:04] Threatens to win with e5.} Nxd4 {[%emt 0:14:27]} 16. Nc3 $1 {[%emt 0:01:43]} Nxb3 {[%emt 0:23:23]} (16... c6 $11 17. Bd1 Ne6) 17. Nd5 $1 $16 {[%emt 0:03:27]} Nxd5 {[%emt 0:00:38][%cal Bf6d5,Bd5e7,Be7f5][%mdl 32]} (17... Nxa1 $2 18. Nxf6+ Kg7 19. Nh5+ Kg6 20. Bxd8 Rxd8 21. Nf4+ Kh7 22. Rxa1 $18) (17... Nc5 $2 18. Qf3 Nxd5 19. Bxd8 Rxd8 20. exd5 $18) 18. Bxd8 {[%emt 0:01:09]} Rxd8 {[%emt 0:00:27]} 19. Qxb3 {[%emt 0:37:49]} ({Much worse is} 19. Qxd5 $6 Be6 20. Qg5+ Kf8 $11) 19... Ne7 {[%emt 0:06:29]} 20. Qc3 {[%emt 0:06:17]} bxa4 {[%emt 0:08:07]} 21. Qf6 {[%emt 0:03:22]} ({Of course not} 21. Rxa4 $6 Ng6 $11) (21. Kh1 $1 $16) 21... Kf8 {[%emt 0:01:19]} 22. e5 {[%emt 0:05:18]} (22. Rfc1 $16) 22... Be6 $11 {[%emt 0:03:48]} 23. Qh6+ {[%emt 0:08:32]} Ke8 {[%emt 0:00:14]} 24. exd6 {[%emt 0:01:59]} Nf5 {[%emt 0:03:15] Chess con chili.} 25. Qf6 {[%emt 0:06:12] dxc7 is the strong threat.} (25. Qh5 $5 {[%cal Rd6c7]}) 25... Nxd6 {[%emt 0:01:43]} 26. Rxa4 {[%emt 0:00:08]} Kd7 {[%emt 0:00:31]} 27. Rc1 {[%emt 0:04:10]} a5 {[%emt 0:01:06]} 28. Qe5 {[%emt 0:02:47]} Rg8 {[%emt 0:01:22]} 29. b4 {[%emt 0:02:18]} (29. Qc3 $11 {keeps the balance.}) 29... axb4 $17 {[%emt 0:03:24]} 30. Rxb4 {[%emt 0:00:33] [#]} Bxf2+ $1 {[%emt 0:02:58][%mdl 64] Discovered Attack} 31. Kxf2 {[%emt 0:00:04]} Rxb4 {[%emt 0:00:03]} 32. Rxc7+ {[%emt 0:00:19][%mdl 64] Decoy} Kxc7 {[%emt 0:00:03]} 33. Qc5+ {[%emt 0:00:03]} Kd7 {[%emt 0:00:05]} 34. Qxb4 {[%emt 0:00:03]} Bd5 {[%emt 0:00:53]} 35. g3 {[%emt 0:01:04]} Ra8 {[%emt 0:03:26] Strongly threatening ...Ra2+.} 36. Qg4+ {[%emt 0:03:55]} Be6 {[%emt 0:02:53]} 37. Qh5 {[%emt 0:00:34]} ({White should try} 37. Qd4 $15) 37... Ra2+ {[%emt 0:00:25]} 38. Ke3 {[%emt 0:01:02]} Ra3+ {[%emt 0:00:56]} 39. Kf4 {[%emt 0:01:00]} Ra4+ {[%emt 0:00:11]} 40. Ke3 {[%emt 0:00:00]} Nf5+ {[%emt 0:00:00]} 41. Kd2 {[%emt 0:06:52]} Ra2+ {[%emt 0:02:22]} 42. Kc3 {[%emt 0:02:11]} Ra3+ {[%emt 0:00:40]} 43. Kb2 {[%emt 0:02:13]} Rb3+ {[%emt 0:01:26]} 44. Kc1 {[%emt 0:00:23]} Nd4 {[%emt 0:04:31]} 45. Qh8 {[%emt 0:02:50]} Nf3 {[%emt 0:00:40] And now ...Bf5 would win.} 46. Kc2 {[%emt 0:03:34]} Ke7 {[%emt 0:04:14]} 47. h4 {[%emt 0:07:26]} (47. g4 $142) 47... Rb4 {[%emt 0:02:36]} ({Black should play} 47... Rb5 48. h5 Nh2) 48. Qa8 {[%emt 0:05:32]} (48. h5 $17 {was the only chance.}) 48... Rc4+ $1 $19 {[%emt 0:01:11]} 49. Kd3 {[%emt 0:01:33] [#]} Ne5+ {[%emt 0:00:37]} 50. Kd2 {[%emt 0:00:19]} Rg4 {[%emt 0:05:18]} 51. Qa3+ {[%emt 0:01:05]} Kf6 {[%emt 0:00:15]} 52. Qc3 {[%emt 0:00:03]} (52. Qf8 $142 Rxg3 53. h5) 52... Re4 {[%emt 0:01:24]} 53. Qc7 {[%emt 0:01:28]} Kg7 {[%emt 0:01:10]} 54. Qb8 {[%emt 0:00:28]} Ng4 {[%emt 0:01:49]} 55. Qb2+ {[%emt 0:00:24]} Nf6 {[%emt 0:00:44]} 56. Qc3 {[%emt 0:01:12]} Kg6 {[%emt 0:01:05][%cal Oe4h4]} 57. Qd3 {[%emt 0:00:33]} Kg7 $2 {[%emt 0:02:03]} (57... Bd7 $19 {Hoping for ...Kg7.} 58. Kd1 Bg4+ 59. Kd2 Bf5) 58. Qd6 $2 {[%emt 0:00:54][%mdl 8192]} (58. Qc3 $11) 58... Rg4 {[%emt 0:00:22] ( -> ...Ne4+)} 59. Ke2 {[%emt 0:01:09]} Kg6 {[%emt 0:00:28]} 60. Kf3 {[%emt 0:00:10]} Nh5 {[%emt 0:06:53]} 61. Qd3+ {[%emt 0:00:40]} Bf5 {[%emt 0:02:01]} 62. Qd6+ {[%emt 0:00:04] [#] Black has a decisive advantage.} Kh7 $1 {[%emt 0:00:24]} 63. Kf2 {[%emt 0:01:00]} Rxg3 {[%emt 0:00:16]} 64. Qd5 {[%emt 0:00:19]} Bg6 {[%emt 0:00:07]} 65. Qd4 {[%emt 0:00:12]} Rd3 {[%emt 0:00:13]} 66. Qe5 {[%emt 0:00:06]} Ra3 {[%emt 0:00:41]} 67. Qg5 {[%emt 0:00:19]} Ra6 {[%emt 0:00:13]} 68. Qb5 {[%emt 0:00:18]} Rf6+ {[%emt 0:00:03]} 69. Kg1 {[%emt 0:00:12]} Rf5 {[%emt 0:00:06]} 70. Qb4 {[%emt 0:00:08]} Ng7 {[%emt 0:00:05] Weighted Error Value: White=0.35/Black=0.21 (precise)} 0-1

[Event "Croatian 1A League 2022"]
[Site "Porec"]
[Date "2022.09.25"]
[Round "2.26"]
[White "Hracek, Zbynek"]
[Black "Erdos, Viktor"]
[Result "1/2-1/2"]
[ECO "C78"]
[WhiteElo "2556"]
[BlackElo "2597"]
[Annotator "TA"]
[PlyCount "24"]
[EventDate "2022.09.24"]
[EventType "team-tourn"]
[EventCountry "CRO"]
[SourceTitle "playchess.com"]
[Source "ChessBase"]
[SourceQuality "1"]
[TimeControl "40/5400+30:1800+30"]

{[%evp 13,24,16,7,0,5,10,6,6,32,32,36,36,60]} 1. e4 {[%emt 0:00:03]} e5 {[%emt 0:00:51]} 2. Nf3 {[%emt 0:00:07]} Nc6 {[%emt 0:00:05]} 3. Bb5 {[%emt 0:00:05]} a6 {[%emt 0:00:05]} 4. Ba4 {[%emt 0:00:05]} Nf6 {[%emt 0:00:06]} 5. O-O {[%emt 0:00:07]} Bc5 {[%emt 0:00:05]} 6. c3 {[%emt 0:00:15]} O-O {[%emt 0:00:05]} 7. d3 {[%emt 0:04:11]} d6 {[%emt 0:01:02]} 8. Bg5 {[%emt 0:00:24][%cal Bc1g5,Bg5h4,Bh4g3][%mdl 32] C78: Ruy Lopez: Archangelsk and Möller Defences.} h6 {[%emt 0:00:40]} 9. Bh4 {[%emt 0:00:04]} g5 {[%emt 0:06:25]} 10. Bg3 {[%emt 0:00:08]} Bg4 {[%emt 0:00:39]} 11. Re1 {[%emt 0:13:25]} Ba7 {[%emt 0:08:52]} 12. Nbd2 {[%emt 0:07:38] [#]} Bh5 $146 {[%emt 0:12:24] White took control after the opening.  Weighted Error Value: White=0.01 (flawless) /Black=0.06 (flawless)} ({Predecessor:} 12... Ne7 13. Nf1 Ng6 14. Ne3 Bxe3 15. fxe3 Nh5 16. Bf2 f5 17. h3 Bxf3 18. Qxf3 Ng7 19. exf5 Rxf5 20. Qxb7 {1-0 (40) Lagarde,M (2598)-Eden,J (2385) Paris 2017}) 1/2-1/2

[Event "Croatian 1A League 2022"]
[Site "Porec"]
[Date "2022.09.25"]
[Round "2.27"]
[White "Muse, Drazen"]
[Black "Leventic, Ivan"]
[Result "1/2-1/2"]
[ECO "D00"]
[WhiteElo "2311"]
[BlackElo "2384"]
[Annotator "TA"]
[PlyCount "44"]
[EventDate "2022.09.24"]
[EventType "team-tourn"]
[EventCountry "CRO"]
[SourceTitle "playchess.com"]
[Source "ChessBase"]
[SourceQuality "1"]
[TimeControl "40/5400+30:1800+30"]

{[%evp 9,21,7,8,8,29,0,14,0,17,0,0,2,0,0]} 1. d4 {[%emt 0:00:04]} d5 {[%emt 0:00:17]} 2. Nc3 {[%emt 0:00:23]} Nf6 {[%emt 0:00:45]} 3. Bf4 {[%emt 0:00:43]} Bf5 {[%emt 0:01:04]} 4. e3 {[%emt 0:00:58]} e6 {[%emt 0:01:11]} 5. Bd3 {[%emt 0:00:36]} Bxd3 {[%emt 0:00:42]} 6. cxd3 {[%emt 0:00:14] D00: 1 d4 d5: Unusual lines.} Bd6 {[%emt 0:02:14]} 7. Bg3 {[%emt 0:02:51]} Nc6 {[%emt 0:01:29] The position is equal.} 8. Nf3 {[%emt 0:03:58]} O-O {[%emt 0:04:35]} 9. Rc1 {[%emt 0:04:40]} Bxg3 {[%emt 0:13:47]} 10. hxg3 {[%emt 0:02:54]} Qd6 {[%emt 0:01:18]} 11. a3 {[%emt 0:00:31] [#] Not much happened in this game.  Weighted Error Value: White=0.19 (very precise) /Black=0.05 (flawless)} {Predecessor:} Rfc8 $146 12. Nb5 Qd8 13. Nc3 Rab8 14. Rc2 a6 15. Ne2 Ne7 16. Ne5 Nd7 17. Nxd7 Qxd7 18. Qd2 Qd6 19. O-O b6 20. Rfc1 c5 21. dxc5 bxc5 22. e4 h6 {½-½ (22) Willmann,B (2215)-Kolanek,R (2134) LSS email 2016} 1/2-1/2

[Event "Croatian 1A League 2022"]
[Site "Porec"]
[Date "2022.09.25"]
[Round "2.28"]
[White "Zivkovic, Vjekoslav"]
[Black "Trbojevic, Mladen"]
[Result "1/2-1/2"]
[ECO "C78"]
[WhiteElo "2364"]
[BlackElo "2332"]
[Annotator "TA"]
[PlyCount "40"]
[EventDate "2022.09.24"]
[EventType "team-tourn"]
[EventCountry "CRO"]
[SourceTitle "playchess.com"]
[Source "ChessBase"]
[SourceQuality "1"]
[TimeControl "40/5400+30:1800+30"]

{[%evp 17,26,0,0,0,0,0,0,0,0,0,4]} 1. e4 {[%emt 0:00:05] Gagarin,V} e5 {[%emt 0:00:26]} 2. Nf3 {[%emt 0:00:07]} Nc6 {[%emt 0:00:18]} 3. Bb5 {[%emt 0:00:11][%cal Bf1b5,Bb5a4,Ba4b3][%mdl 32]} a6 {[%emt 0:00:31]} 4. Ba4 {[%emt 0:01:20]} Nf6 {[%emt 0:00:40]} 5. O-O {[%emt 0:00:19]} b5 {[%emt 0:00:33]} 6. Bb3 {[%emt 0:00:52]} Bc5 {[%emt 0:00:45]} 7. c3 {[%emt 0:09:36]} d6 {[%emt 0:02:10]} 8. d4 {[%emt 0:03:43]} Bb6 {[%emt 0:00:53]} 9. dxe5 {[%emt 0:17:21]} Nxe5 {[%emt 0:08:23] The position is equal.} 10. Nxe5 {[%emt 0:00:32] C78: Ruy Lopez: Archangelsk and Möller Defences.} dxe5 {[%emt 0:00:12]} 11. Qxd8+ {[%emt 0:00:11]} Kxd8 {[%emt 0:00:02]} 12. Nd2 {[%emt 0:01:26]} Ke7 {[%emt 0:00:51]} 13. Nf3 {[%emt 0:00:40]} Nd7 {[%emt 0:01:29] [#] A balanced but interesting game.} {Predecessor:} 14. Bd5 $146 Rb8 15. b3 f6 16. Ba3+ Bc5 17. Bb4 Bd6 18. Ne1 Nb6 19. Nc2 Nxd5 20. exd5 Bd7 {½-½ (20) Sokolov,A (2585)-Zvjaginsev,V (2600) Tivat 1995 CBM 048 Extra [Gagarin,V]} 1/2-1/2

[Event "Croatian 1A League 2022"]
[Site "Porec"]
[Date "2022.09.25"]
[Round "2.29"]
[White "Krstic, Uros"]
[Black "Medak, Bojan"]
[Result "1/2-1/2"]
[WhiteElo "2323"]
[BlackElo "2353"]
[Annotator "TA"]
[PlyCount "19"]
[EventDate "2022.09.24"]
[EventType "team-tourn"]
[EventCountry "CRO"]
[SourceTitle "playchess.com"]
[Source "ChessBase"]
[SourceQuality "1"]
[TimeControl "40/5400+30:1800+30"]

{[%evp 9,19,-6,-3,-3,15,19,8,0,-10,9,22,6]} 1. e4 {[%emt 0:00:32]} c5 {[%emt 0:00:14]} 2. Nf3 {[%emt 0:01:18]} Nc6 {[%emt 0:00:21]} 3. Nc3 {[%emt 0:01:27]} Nf6 {[%emt 0:00:52]} 4. g3 {[%emt 0:05:12]} d5 {[%emt 0:05:52]} 5. exd5 {[%emt 0:01:37]} Nxd5 {[%emt 0:00:08] The position is equal.} 6. Bg2 {[%emt 0:00:25] B29: Sicilian: 2 Nf3 Nf6 (Nimzowitsch Variation).} g6 {[%emt 0:03:13]} 7. O-O {[%emt 0:02:33]} Bg7 {[%emt 0:01:03]} 8. Re1 {[%emt 0:02:14]} Nc7 {[%emt 0:01:04]} 9. d3 {[%emt 0:10:45]} O-O {[%emt 0:02:03] [#]} 10. Nd2 $146 {[%emt 0:09:07] Not much happened in this game.  Weighted Error Value: White=0.02 (flawless) /Black=0.03 (flawless)} ({Predecessor:} 10. Ne4 b6 11. Ned2 Bb7 12. Nc4 Rb8 13. Bf4 f6 14. c3 e5 15. Be3 Kh8 16. a4 {0-1 (64) Bykov,O (2336)-Bronstein,O (2308) Mamaia 2017}) 1/2-1/2

[Event "Croatian 1A League 2022"]
[Site "Porec"]
[Date "2022.09.25"]
[Round "2.30"]
[White "Mrkonjic, Nenad"]
[Black "Vernacki, Srdjan"]
[Result "1/2-1/2"]
[ECO "A47"]
[WhiteElo "2347"]
[BlackElo "2280"]
[Annotator "TA"]
[PlyCount "115"]
[EventDate "2022.09.24"]
[EventType "team-tourn"]
[EventCountry "CRO"]
[SourceTitle "playchess.com"]
[Source "ChessBase"]
[SourceQuality "1"]
[TimeControl "40/5400+30:1800+30"]

{[%evp 9,115,0,0,1,14,0,10,5,8,4,27,13,11,3,14,8,14,11,57,53,61,-23,-18,-18,-21,-16,-29,-30,0,-31,-26,-33,-13,-13,-14,-16,-18,-22,-3,-17,-5,-4,-2,-6,0,0,0,-4,0,0,0,0,0,0,0,0,0,0,0,0,0,0,0,0,0,0,0,0,0,0,0,0,0,-100,-121,-129,-135,-165,-147,-147,-147,-147,-134,-146,-127,-127,-127,-127,-127,-127,-105,-105,-105,-105,-105,-105,-105,-313,-105,-105,-105,-105,-105,-105,0,-105,-105,-105]} 1. d4 {[%emt 0:01:02]} Nf6 {[%emt 0:00:06]} 2. Nf3 {[%emt 0:00:19]} e6 {[%emt 0:00:07]} 3. Bf4 {[%emt 0:00:47]} b6 {[%emt 0:00:20]} 4. h3 {[%emt 0:11:08]} Bb7 {[%emt 0:05:07]} 5. e3 {[%emt 0:00:35]} c5 {[%emt 0:00:54]} 6. c3 {[%emt 0:00:20] A47: 1 d4 Nf6 2 Nf3 b6: Torre, London and Colle Systems.} Be7 {[%emt 0:00:21]} 7. Be2 {[%emt 0:00:22]} O-O {[%emt 0:00:25]} 8. O-O {[%emt 0:02:01] The position is equal.} d6 {[%emt 0:03:36]} 9. Nbd2 {[%emt 0:00:30]} Qc7 {[%emt 0:02:02]} 10. Qb3 {[%emt 0:01:21]} Nbd7 {[%emt 0:02:43] [#]} 11. Rfc1 $146 {[%emt 0:00:49]} ({Predecessor:} 11. Rad1 Rfd8 12. Bg5 Nf8 13. Nh2 Ng6 14. Ng4 Nd5 15. Bxe7 Qxe7 16. c4 {0-1 (58) Danek,P (1956)-Belohlavek,P (2223) Czech Republic 2009}) 11... a6 {[%emt 0:01:12]} 12. a4 {[%emt 0:00:16]} Bc6 {[%emt 0:01:31]} 13. Qd1 {[%emt 0:00:21]} b5 (13... Rfc8 $11 {is superior.}) 14. axb5 {[%emt 0:05:22]} axb5 {[%emt 0:09:03]} 15. Bg5 {[%emt 0:00:44]} (15. Rxa8 $14 Rxa8 16. dxc5) 15... h6 {[%emt 0:01:24] Threatens to win with ...Rxa1.} 16. Bh4 {[%emt 0:01:13]} Qb7 {[%emt 0:01:25]} 17. Ne1 {[%emt 0:00:38]} Rxa1 {[%emt 0:01:32]} 18. Rxa1 {[%emt 0:00:06]} Ra8 {[%emt 0:00:36]} 19. Bxf6 {[%emt 0:09:11]} Nxf6 {[%emt 0:01:29]} 20. Bf3 {[%emt 0:00:57]} c4 {[%emt 0:01:37]} 21. Rxa8+ {[%emt 0:01:28]} Qxa8 {[%emt 0:00:13]} 22. Bxc6 {[%emt 0:00:06]} Qxc6 {[%emt 0:00:04]} 23. Qa1 {[%emt 0:00:14]} Ne4 {[%emt 0:11:37]} 24. Nef3 {[%emt 0:07:16]} Nxd2 {[%emt 0:01:18]} 25. Nxd2 $11 {[%emt 0:00:26][%mdl 4096] Endgame KQB-KQN} Qb7 {[%emt 0:02:15]} 26. Qa5 {[%emt 0:01:17]} d5 {[%emt 0:01:26]} 27. b4 {[%emt 0:00:26]} cxb3 {[%emt 0:02:02]} 28. Nxb3 {[%emt 0:00:19]} b4 {[%emt 0:06:36]} 29. g3 {[%emt 0:01:07]} g6 {[%emt 0:02:18]} 30. Kg2 {[%emt 0:00:22]} Kg7 {[%emt 0:01:17]} 31. cxb4 {[%emt 0:08:10]} Qxb4 {[%emt 0:01:17]} 32. Qa2 {[%emt 0:00:15]} Qc4 {[%emt 0:00:55]} 33. Qb1 {[%emt 0:01:24]} h5 {[%emt 0:00:53]} 34. Nc1 {[%emt 0:01:07]} Bd6 {[%emt 0:03:22]} 35. Nd3 {[%emt 0:00:23]} Kg8 {[%emt 0:02:20]} 36. Ne1 {[%emt 0:04:41]} Be7 {[%emt 0:02:41]} 37. Nf3 {[%emt 0:02:19]} Bf6 {[%emt 0:00:36]} 38. Nd2 {[%emt 0:01:32]} Qe2 {[%emt 0:04:19]} 39. Nf3 {[%emt 0:10:25]} Kg7 {[%emt 0:02:02]} 40. Qb8 {[%emt 0:00:00]} Qc2 {[%emt 0:00:00]} 41. Ne1 {[%emt 0:11:12]} (41. g4 $11 {keeps the balance.}) 41... Qe4+ $1 $17 {[%emt 0:08:54]} 42. Kg1 {[%emt 0:01:44]} Bxd4 {[%emt 0:02:08]} 43. Qf4 {[%emt 0:00:40]} Qxf4 {[%emt 0:00:28]} 44. gxf4 $19 {[%emt 0:00:09] KB-KN} Bc3 {[%emt 0:01:15]} 45. Nd3 {[%emt 0:00:01]} f6 {[%emt 0:04:47]} 46. Kg2 {[%emt 0:00:13]} e5 {[%emt 0:00:24]} 47. fxe5 {[%emt 0:00:49]} fxe5 {[%emt 0:01:20]} 48. f3 {[%emt 0:00:54]} Kf6 {[%emt 0:01:46]} 49. e4 {[%emt 0:00:01]} dxe4 {[%emt 0:09:18]} 50. fxe4 {[%emt 0:00:09]} Ke6 {[%emt 0:00:33]} 51. Kf3 {[%emt 0:00:33]} Kd6 {[%emt 0:00:39]} 52. Kg3 {[%emt 0:02:39]} g5 {[%emt 0:01:42] White must now prevent ...Kc6.} 53. Kf3 $2 {[%emt 0:00:19] [#]} (53. Kf2 $17 {was the only defense.}) 53... Bd2 $2 {[%emt 0:00:43]} (53... Kc6 $1 $19 {has better winning chances. aiming for ...Kb5.} 54. h4 g4+ 55. Ke2 Bd4 56. Nb4+ Kc5) 54. Ke2 $17 {[%emt 0:00:42]} Bf4 {[%emt 0:00:12]} 55. Kf3 {[%emt 0:00:32]} Kc6 {[%emt 0:01:07] And now ...Kb5 would win.} 56. Nb4+ {[%emt 0:00:21] [#]} Kd6 {[%emt 0:02:51]} ({Black should play} 56... Kd7 $1 $17 57. Nd5 Ke6) 57. Nd5 {[%emt 0:00:15]} (57. Nd3 $11) 57... Ke6 {[%emt 0:00:21]} 58. Nc7+ {[%emt 0:00:10] Weighted Error Value: White=0.16 (very precise) /Black=0.11 (very precise)} 1/2-1/2